[Event "MČR juniorů a juniorek v rapid šachu 2023"]
[Site "Czech Republic"]
[Date "2023.09.23"]
[Round "1.1"]
[White "Beran, Jakub"]
[Black "Jun, Rudolf"]
[Result "0-1"]
[TimeControl "20 min + 5 sec per move"]
[WhiteFideId "23727071"]
[BlackFideId "376612"]
[WhiteElo "1645"]
[BlackElo "2151"]

1. c4 {[%clk 00:20:08]} {[%emt 00:00:02]} Nf6 {[%clk 00:20:04]} {[%emt
00:00:06]} 2. Nc3 {[%clk 00:20:07]} {[%emt 00:00:06]} e6 {[%clk 00:19:28]}
{[%emt 00:00:40]} 3. d4 {[%clk 00:19:55]} {[%emt 00:00:16]} Bb4 {[%clk
00:19:11]} {[%emt 00:00:23]} 4. Bd2 {[%clk 00:19:55]} {[%emt 00:00:06]} O-O
{[%clk 00:18:51]} {[%emt 00:00:25]} 5. Nf3 {[%clk 00:19:48]} {[%emt 00:00:11]}
d5 {[%clk 00:18:09]} {[%emt 00:00:47]} 6. e3 {[%clk 00:18:54]} {[%emt
00:01:00]} c6 {[%clk 00:17:28]} {[%emt 00:00:45]} 7. Bd3 {[%clk 00:17:32]}
{[%emt 00:01:27]} Nbd7 {[%clk 00:16:42]} {[%emt 00:00:51]} 8. O-O {[%clk
00:17:16]} {[%emt 00:00:21]} Bd6 {[%clk 00:14:19]} {[%emt 00:02:29]} 9. a3
{[%clk 00:16:32]} {[%emt 00:00:49]} e5 {[%clk 00:13:18]} {[%emt 00:01:06]} 10.
cxd5 {[%clk 00:12:58]} {[%emt 00:03:39]} cxd5 {[%clk 00:12:49]} {[%emt
00:00:34]} 11. e4 {[%clk 00:12:31]} {[%emt 00:00:31]} dxe4 {[%clk 00:10:34]}
{[%emt 00:02:20]} 12. Nxe4 {[%clk 00:11:56]} {[%emt 00:00:40]} Nxe4 {[%clk
00:10:31]} {[%emt 00:00:08]} 13. Bxe4 {[%clk 00:11:59]} {[%emt 00:00:02]} exd4
{[%clk 00:08:58]} {[%emt 00:01:39]} 14. Nxd4 {[%clk 00:11:41]} {[%emt
00:00:23]} Nc5 {[%clk 00:07:14]} {[%emt 00:01:49]} 15. Bf3 {[%clk 00:10:02]}
{[%emt 00:01:44]} Qh4 {[%clk 00:06:47]} {[%emt 00:00:32]} 16. g3 {[%clk
00:08:50]} {[%emt 00:01:16]} Qxd4 {[%clk 00:06:42]} {[%emt 00:00:10]} 17. Bb4
{[%clk 00:08:08]} {[%emt 00:00:47]} Qxd1 {[%clk 00:01:47]} {[%emt 00:05:00]} 18.
Rfxd1 {[%clk 00:07:58]} {[%emt 00:00:15]} a5 {[%clk 00:01:23]} {[%emt
00:00:30]} 0-1

[Event "MČR juniorů a juniorek v rapid šachu 2023"]
[Site "Czech Republic"]
[Date "2023.09.23"]
[Round "1.2"]
[White "Nagy, Ladislav"]
[Black "Pistej, Tomas"]
[Result "1-0"]
[TimeControl "20 min + 5 sec per move"]
[WhiteFideId "374300"]
[BlackFideId "23750740"]
[WhiteElo "2089"]
[BlackElo "1640"]

1. e4 {[%clk 00:20:07]} {[%emt 00:00:02]} e5 {[%clk 00:20:08]} {[%emt
00:00:03]} 2. Nf3 {[%clk 00:20:08]} {[%emt 00:00:03]} Nc6 {[%clk 00:20:10]}
{[%emt 00:00:04]} 3. Bc4 {[%clk 00:20:07]} {[%emt 00:00:05]} Nf6 {[%clk
00:19:56]} {[%emt 00:00:20]} 4. d3 {[%clk 00:20:08]} {[%emt 00:00:04]} Bc5
{[%clk 00:19:31]} {[%emt 00:00:30]} 5. O-O {[%clk 00:20:09]} {[%emt 00:00:03]}
O-O {[%clk 00:19:29]} {[%emt 00:00:08]} 6. Bg5 {[%clk 00:20:07]} {[%emt
00:00:07]} h6 {[%clk 00:19:19]} {[%emt 00:00:15]} 7. Bh4 {[%clk 00:20:09]}
{[%emt 00:00:03]} Be7 {[%clk 00:18:33]} {[%emt 00:00:51]} 8. Bg3 {[%clk
00:20:04]} {[%emt 00:00:10]} d6 {[%clk 00:18:32]} {[%emt 00:00:06]} 9. a4
{[%clk 00:20:05]} {[%emt 00:00:04]} Be6 {[%clk 00:17:24]} {[%emt 00:01:13]} 10.
Nbd2 {[%clk 00:19:11]} {[%emt 00:00:59]} Qd7 {[%clk 00:16:41]} {[%emt
00:00:49]} 11. c3 {[%clk 00:17:46]} {[%emt 00:01:29]} Na5 {[%clk 00:14:07]}
{[%emt 00:02:39]} 12. Bxe6 {[%emt 00:00:43]} fxe6 {[%emt 00:01:39]} 13. b4
{[%clk 00:15:08]} {[%emt 00:00:20]} Nc6 {[%clk 00:14:06]} {[%emt 00:00:07]} 14.
Nc4 {[%clk 00:15:03]} {[%emt 00:00:10]} Nh7 {[%clk 00:11:50]} {[%emt 00:02:21]}
15. b5 {[%clk 00:12:54]} {[%emt 00:02:14]} Nd8 {[%clk 00:11:17]} {[%emt
00:00:37]} 16. d4 {[%clk 00:12:10]} {[%emt 00:00:49]} exd4 {[%clk 00:10:14]}
{[%emt 00:01:08]} 17. cxd4 {[%clk 00:10:15]} {[%emt 00:02:00]} Ng5 {[%clk
00:09:24]} {[%emt 00:00:55]} 18. Nfd2 {[%clk 00:08:52]} {[%emt 00:01:29]} Ngf7
{[%clk 00:06:02]} {[%emt 00:03:27]} 19. Qg4 {[%clk 00:04:58]} {[%emt 00:03:59]}
Qc8 {[%clk 00:04:48]} {[%emt 00:01:19]} 20. Rac1 {[%clk 00:04:34]} {[%emt
00:00:29]} c5 {[%clk 00:01:59]} {[%emt 00:02:54]} 21. d5 {[%clk 00:03:27]}
{[%emt 00:01:12]} e5 {[%clk 00:01:43]} {[%emt 00:00:21]} 22. Qh5 {[%clk
00:02:23]} {[%emt 00:01:09]} Bg5 {[%clk 00:00:56]} {[%emt 00:00:52]} 23. f4
{[%clk 00:01:48]} {[%emt 00:00:39]} exf4 {[%clk 00:00:48]} {[%emt 00:00:14]} 24.
Bxf4 {[%clk 00:01:51]} {[%emt 00:00:02]} Bxf4 {[%clk 00:00:46]} {[%emt
00:00:07]} 25. Rxf4 {[%clk 00:01:55]} {[%emt 00:00:01]} Ng5 {[%clk 00:00:19]}
{[%emt 00:00:32]} 26. Rxf8+ {[%clk 00:01:51]} {[%emt 00:00:09]} Kxf8 {[%clk
00:00:22]} {[%emt 00:00:02]} 27. Rf1+ {[%clk 00:01:54]} {[%emt 00:00:02]} Kg8
{[%clk 00:00:07]} {[%emt 00:00:21]} 28. Qe8+ {[%clk 00:01:42]} {[%emt
00:00:16]} Kh7 {[%clk 00:00:10]} {[%emt 00:00:02]} 29. Rf8 {[%clk 00:01:32]}
{[%emt 00:00:15]} Ngf7 {[%clk 00:00:00]} {[%emt 00:00:10]} 1-0

[Event "MČR juniorů a juniorek v rapid šachu 2023"]
[Site "Czech Republic"]
[Date "2023.09.23"]
[Round "1.3"]
[White "Boff, Vojtech"]
[Black "Prazak, Daniel"]
[Result "0-1"]
[TimeControl "20 min + 5 sec per move"]
[WhiteFideId "23733969"]
[BlackFideId "23709456"]
[WhiteElo "1632"]
[BlackElo "2029"]

1. d4 {[%clk 00:20:07]} {[%emt 00:00:02]} Nf6 {[%clk 00:20:09]} {[%emt
00:00:02]} 2. c4 {[%clk 00:20:00]} {[%emt 00:00:12]} e6 {[%clk 00:19:45]}
{[%emt 00:00:30]} 3. Nf3 {[%clk 00:19:52]} {[%emt 00:00:12]} b6 {[%clk
00:19:34]} {[%emt 00:00:16]} 4. Nc3 {[%clk 00:19:32]} {[%emt 00:00:24]} Bb4
{[%clk 00:19:17]} {[%emt 00:00:22]} 5. Qc2 {[%clk 00:18:56]} {[%emt 00:00:42]}
Bb7 {[%clk 00:18:49]} {[%emt 00:00:33]} 6. Bd2 {[%clk 00:18:38]} {[%emt
00:00:23]} O-O {[%clk 00:17:49]} {[%emt 00:01:05]} 7. g3 {[%clk 00:17:11]}
{[%emt 00:01:31]} Nc6 {[%clk 00:14:56]} {[%emt 00:02:59]} 8. Be3 {[%clk
00:13:39]} {[%emt 00:03:36]} Na5 {[%clk 00:12:15]} {[%emt 00:02:46]} 9. a3
{[%clk 00:10:46]} {[%emt 00:02:59]} Be7 {[%clk 00:11:37]} {[%emt 00:00:43]} 10.
b3 {[%clk 00:09:15]} {[%emt 00:01:35]} d5 {[%clk 00:10:52]} {[%emt 00:00:51]}
11. cxd5 {[%clk 00:08:53]} {[%emt 00:00:26]} Nxd5 {[%clk 00:10:44]} {[%emt
00:00:13]} 12. Nxd5 {[%clk 00:08:22]} {[%emt 00:00:37]} Bxd5 {[%clk 00:10:39]}
{[%emt 00:00:09]} 13. b4 {[%clk 00:07:56]} {[%emt 00:00:31]} Nc4 {[%clk
00:10:41]} {[%emt 00:00:03]} 14. Bg2 {[%clk 00:07:50]} {[%emt 00:00:11]} a5
{[%clk 00:09:39]} {[%emt 00:01:08]} 15. O-O {[%clk 00:07:20]} {[%emt 00:00:35]}
axb4 {[%clk 00:09:22]} {[%emt 00:00:22]} 16. axb4 {[%clk 00:07:23]} {[%emt
00:00:01]} Nxe3 {[%clk 00:09:25]} {[%emt 00:00:02]} 17. fxe3 {[%clk 00:07:24]}
{[%emt 00:00:04]} Bxb4 {[%clk 00:08:55]} {[%emt 00:00:36]} 18. Ra4 {[%clk
00:07:06]} {[%emt 00:00:23]} Rxa4 {[%clk 00:08:40]} {[%emt 00:00:20]} 19. Qxa4
{[%clk 00:07:09]} {[%emt 00:00:01]} Bd6 {[%clk 00:08:43]} {[%emt 00:00:03]} 20.
Qc2 {[%clk 00:06:46]} {[%emt 00:00:27]} Qa8 {[%clk 00:06:53]} {[%emt 00:01:55]}
21. Ng5 {[%clk 00:06:02]} {[%emt 00:00:49]} g6 {[%clk 00:06:56]} {[%emt
00:00:03]} 22. Bxd5 {[%clk 00:06:02]} {[%emt 00:00:05]} Qxd5 {[%clk 00:05:54]}
{[%emt 00:01:06]} 23. Ne4 {[%clk 00:05:43]} {[%emt 00:00:24]} Be7 {[%clk
00:05:03]} {[%emt 00:00:56]} 24. Nf6+ {[%clk 00:05:41]} {[%emt 00:00:07]} Bxf6
{[%clk 00:05:05]} {[%emt 00:00:03]} 25. Rxf6 {[%clk 00:05:44]} {[%emt
00:00:02]} c5 {[%clk 00:04:48]} {[%emt 00:00:22]} 26. dxc5 {[%clk 00:05:31]}
{[%emt 00:00:17]} bxc5 {[%clk 00:04:52]} {[%emt 00:00:03]} 27. Rf4 {[%clk
00:05:17]} {[%emt 00:00:17]} Ra8 {[%clk 00:04:34]} {[%emt 00:00:24]} 28. e4
{[%clk 00:04:31]} {[%emt 00:00:51]} Qd4+ {[%clk 00:02:38]} {[%emt 00:02:01]} 29.
Kg2 {[%clk 00:04:24]} {[%emt 00:00:12]} e5 {[%clk 00:01:51]} {[%emt 00:00:52]}
30. Rf3 {[%clk 00:03:46]} {[%emt 00:00:42]} Ra4 {[%clk 00:01:52]} {[%emt
00:00:04]} 31. Qb3 {[%clk 00:03:19]} {[%emt 00:00:32]} Qd7 {[%clk 00:00:58]}
{[%emt 00:01:00]} 32. Rxf7 {[%clk 00:02:42]} {[%emt 00:00:42]} Qxf7 {[%clk
00:01:02]} {[%emt 00:00:01]} 33. Qxa4 {[%clk 00:02:46]} {[%emt 00:00:02]} Qe7
{[%clk 00:00:38]} {[%emt 00:00:28]} 34. Qc4+ {[%clk 00:02:30]} {[%emt
00:00:20]} Kg7 {[%clk 00:00:42]} {[%emt 00:00:02]} 35. e3 {[%clk 00:02:07]}
{[%emt 00:00:28]} Qd6 {[%clk 00:00:32]} {[%emt 00:00:15]} 36. Qd5 {[%clk
00:01:49]} {[%emt 00:00:23]} Qxd5 {[%clk 00:00:32]} {[%emt 00:00:05]} 37. exd5
{[%clk 00:01:53]} e4 {[%clk 00:00:36]} 38. Kf2 {[%clk 00:01:56]} {[%emt
00:00:01]} Kf6 {[%clk 00:00:40]} 39. Ke1 {[%clk 00:01:57]} {[%emt 00:00:04]}
Ke5 {[%clk 00:00:44]} {[%emt 00:00:01]} 0-1

[Event "MČR juniorů a juniorek v rapid šachu 2023"]
[Site "Czech Republic"]
[Date "2023.09.23"]
[Round "1.4"]
[White "Ocelak, Jakub"]
[Black "Dvorak, Jan"]
[Result "1-0"]
[TimeControl "20 min + 5 sec per move"]
[WhiteFideId "23707933"]
[BlackFideId "23730722"]
[WhiteElo "2025"]
[BlackElo "1624"]

1. c4 {[%clk 00:19:24]} {[%emt 00:00:40]} e5 {[%clk 00:20:04]} {[%emt
00:00:12]} 2. g3 {[%clk 00:19:26]} {[%emt 00:00:03]} Nc6 {[%clk 00:20:08]}
{[%emt 00:00:02]} 3. Bg2 {[%clk 00:19:30]} {[%emt 00:00:01]} Bc5 {[%clk
00:20:11]} {[%emt 00:00:03]} 4. Nc3 {[%clk 00:18:28]} {[%emt 00:01:05]} a6
{[%clk 00:20:05]} {[%emt 00:00:11]} 5. Nf3 {[%clk 00:17:16]} {[%emt 00:01:16]}
d6 {[%clk 00:19:38]} {[%emt 00:00:33]} 6. e3 {[%clk 00:16:33]} {[%emt
00:00:48]} Ba7 {[%clk 00:19:38]} {[%emt 00:00:06]} 7. h3 {[%clk 00:16:03]}
{[%emt 00:00:35]} Nge7 {[%clk 00:19:21]} {[%emt 00:00:23]} 8. O-O {[%clk
00:14:24]} {[%emt 00:01:43]} Be6 {[%clk 00:18:36]} {[%emt 00:00:50]} 9. b3
{[%clk 00:14:09]} {[%emt 00:00:20]} Qd7 {[%clk 00:18:06]} {[%emt 00:00:35]} 10.
Kh2 {[%clk 00:14:09]} {[%emt 00:00:04]} f6 {[%clk 00:15:15]} {[%emt 00:02:57]}
11. d4 {[%clk 00:13:53]} {[%emt 00:00:20]} Bf7 {[%clk 00:12:26]} {[%emt
00:02:55]} 12. dxe5 {[%clk 00:12:40]} {[%emt 00:01:18]} fxe5 {[%clk 00:11:01]}
{[%emt 00:01:30]} 13. Ng5 {[%clk 00:12:37]} {[%emt 00:00:07]} Bg6 {[%clk
00:10:15]} {[%emt 00:00:52]} 14. Nd5 {[%clk 00:11:49]} {[%emt 00:00:52]} O-O-O
{[%clk 00:09:36]} {[%emt 00:00:45]} 15. Ba3 {[%clk 00:10:38]} {[%emt 00:01:16]}
h6 {[%clk 00:09:05]} {[%emt 00:00:36]} 16. Ne4 {[%clk 00:10:39]} {[%emt
00:00:04]} Bh7 {[%clk 00:07:06]} {[%emt 00:02:04]} 17. Rc1 {[%clk 00:10:23]}
{[%emt 00:00:21]} Qe6 {[%clk 00:03:39]} {[%emt 00:03:31]} 18. b4 {[%clk
00:08:46]} {[%emt 00:01:43]} g5 {[%clk 00:00:51]} {[%emt 00:02:53]} 19. b5
{[%clk 00:07:12]} {[%emt 00:01:39]} Nb8 {[%clk 00:00:37]} {[%emt 00:00:19]} 20.
Qb3 {[%clk 00:05:33]} {[%emt 00:01:44]} Nxd5 {[%clk 00:00:08]} {[%emt
00:00:35]} 21. cxd5 {[%clk 00:05:35]} {[%emt 00:00:03]} Qe7 {[%clk 00:00:12]}
22. b6 {[%clk 00:05:38]} {[%emt 00:00:02]} 1-0

[Event "MČR juniorů a juniorek v rapid šachu 2023"]
[Site "Czech Republic"]
[Date "2023.09.23"]
[Round "1.5"]
[White "Mrkvan, Frantisek"]
[Black "Hlavina, Matous"]
[Result "0-1"]
[TimeControl "20 min + 5 sec per move"]
[WhiteFideId "23721626"]
[BlackFideId "386650"]
[WhiteElo "1601"]
[BlackElo "2005"]

1. e4 {[%clk 00:20:07]} {[%emt 00:00:02]} g6 {[%clk 00:19:33]} {[%emt
00:00:35]} 2. d4 {[%clk 00:19:54]} {[%emt 00:00:21]} Bg7 {[%clk 00:19:35]}
{[%emt 00:00:03]} 3. Nc3 {[%clk 00:19:23]} {[%emt 00:00:36]} d6 {[%clk
00:19:32]} {[%emt 00:00:07]} 4. Be3 {[%clk 00:18:43]} {[%emt 00:00:45]} a6
{[%clk 00:19:34]} {[%emt 00:00:03]} 5. Be2 {[%clk 00:18:18]} {[%emt 00:00:30]}
b5 {[%clk 00:19:22]} {[%emt 00:00:18]} 6. a3 {[%clk 00:18:18]} {[%emt
00:00:05]} Bb7 {[%clk 00:19:17]} {[%emt 00:00:09]} 7. f4 {[%clk 00:17:02]}
{[%emt 00:01:22]} Nd7 {[%clk 00:18:18]} {[%emt 00:01:04]} 8. Bf3 {[%clk
00:15:43]} {[%emt 00:01:23]} e6 {[%clk 00:16:54]} {[%emt 00:01:30]} 9. Nge2
{[%clk 00:14:42]} {[%emt 00:01:06]} Ne7 {[%clk 00:16:41]} {[%emt 00:00:17]} 10.
O-O {[%clk 00:14:34]} {[%emt 00:00:14]} Rc8 {[%clk 00:16:00]} {[%emt 00:00:46]}
11. Qe1 {[%clk 00:12:04]} {[%emt 00:02:35]} Nb6 {[%clk 00:15:18]} {[%emt
00:00:46]} 12. b3 {[%clk 00:10:26]} {[%emt 00:01:43]} d5 {[%clk 00:12:30]}
{[%emt 00:02:54]} 13. e5 {[%clk 00:08:26]} {[%emt 00:02:05]} Nd7 {[%clk
00:11:43]} {[%emt 00:00:52]} 14. g4 {[%emt 00:05:39]} c5 {[%emt 00:00:47]} 15.
dxc5 {[%clk 00:03:24]} {[%emt 00:00:02]} Nxc5 {[%clk 00:10:02]} {[%emt
00:00:34]} 16. Rd1 {[%clk 00:03:00]} {[%emt 00:00:30]} Qc7 {[%clk 00:09:26]}
{[%emt 00:00:40]} 17. Qf2 {[%clk 00:02:18]} {[%emt 00:00:48]} Nd7 {[%clk
00:07:55]} {[%emt 00:01:35]} 18. Rd3 {[%clk 00:01:19]} {[%emt 00:01:04]} Nc5
{[%clk 00:06:52]} {[%emt 00:01:09]} 19. Rd2 {[%clk 00:01:08]} {[%emt 00:00:16]}
h6 {[%clk 00:05:54]} {[%emt 00:01:02]} 20. b4 {[%clk 00:00:44]} {[%emt
00:00:29]} Ne4 {[%clk 00:04:26]} {[%emt 00:01:33]} 21. Bxe4 {[%clk 00:00:18]}
{[%emt 00:00:32]} dxe4 {[%clk 00:04:29]} {[%emt 00:00:02]} 22. Rfd1 {[%clk
00:00:22]} Bd5 {[%clk 00:04:14]} {[%emt 00:00:20]} 23. Bc5 {[%clk 00:00:19]}
{[%emt 00:00:07]} Bc6 {[%clk 00:02:57]} {[%emt 00:01:22]} 24. Bb6 {[%clk
00:00:15]} {[%emt 00:00:10]} e3 {[%clk 00:02:37]} {[%emt 00:00:25]} 25. Qxe3
{[%clk 00:00:17]} {[%emt 00:00:03]} Qb8 {[%clk 00:02:19]} {[%emt 00:00:22]} 26.
Rd8+ {[%clk 00:00:20]} {[%emt 00:00:02]} Rxd8 {[%clk 00:02:23]} 27. Rxd8+
{[%clk 00:00:24]} Qxd8 {[%clk 00:02:28]} 28. Bxd8 {[%clk 00:00:28]} Kxd8 {[%clk
00:02:32]} 29. Qb6+ {[%clk 00:00:30]} {[%emt 00:00:02]} Kd7 {[%clk 00:02:31]}
{[%emt 00:00:07]} 30. Nd4 {[%clk 00:00:26]} {[%emt 00:00:09]} Rc8 {[%clk
00:02:32]} {[%emt 00:00:04]} 31. Nxc6 {[%clk 00:00:20]} {[%emt 00:00:11]} Rxc6
{[%clk 00:02:34]} {[%emt 00:00:03]} 32. Qb7+ {[%clk 00:00:25]} Rc7 {[%clk
00:02:32]} {[%emt 00:00:07]} 33. Qxa6 Rxc3 {[%clk 00:02:29]} {[%emt 00:00:10]}
34. Qxb5+ {[%clk 00:00:23]} {[%emt 00:00:08]} Rc6 {[%clk 00:02:20]} {[%emt
00:00:14]} 35. Qd3+ {[%clk 00:00:27]} {[%emt 00:00:01]} Ke8 {[%clk 00:02:15]}
{[%emt 00:00:11]} 36. c4 {[%clk 00:00:32]} Bf8 {[%clk 00:02:10]} {[%emt
00:00:10]} 37. b5 {[%clk 00:00:25]} {[%emt 00:00:11]} Rc8 {[%clk 00:02:08]}
{[%emt 00:00:07]} 38. a4 {[%clk 00:00:24]} {[%emt 00:00:07]} Ng8 {[%clk
00:01:57]} {[%emt 00:00:15]} 39. a5 {[%clk 00:00:26]} {[%emt 00:00:02]} Bc5+
{[%clk 00:02:01]} {[%emt 00:00:01]} 40. Kg2 {[%clk 00:00:30]} Ne7 {[%clk
00:02:05]} {[%emt 00:00:02]} 41. a6 {[%clk 00:00:20]} {[%emt 00:00:15]} Rc7
{[%clk 00:01:42]} {[%emt 00:00:28]} 42. Qe4 {[%clk 00:00:21]} {[%emt 00:00:04]}
Nc8 {[%clk 00:01:43]} {[%emt 00:00:04]} 43. Qa8 {[%clk 00:00:18]} {[%emt
00:00:07]} Ke7 {[%clk 00:01:43]} {[%emt 00:00:04]} 44. Qb7 {[%clk 00:00:12]}
{[%emt 00:00:12]} Kd7 {[%clk 00:01:33]} {[%emt 00:00:15]} 45. Qb8 {[%clk
00:00:10]} {[%emt 00:00:06]} Ba7 {[%clk 00:01:32]} {[%emt 00:00:06]} 46. Qa8
{[%clk 00:00:14]} Nb6 {[%clk 00:01:32]} {[%emt 00:00:05]} 47. Qe4 {[%clk
00:00:17]} {[%emt 00:00:01]} Nxc4 {[%clk 00:01:35]} {[%emt 00:00:03]} 48. Qd3+
{[%clk 00:00:19]} {[%emt 00:00:03]} Ke7 {[%clk 00:01:38]} {[%emt 00:00:02]} 49.
Qb3 {[%clk 00:00:13]} {[%emt 00:00:11]} Ne3+ {[%clk 00:01:37]} {[%emt
00:00:05]} 50. Kf3 {[%clk 00:00:14]} {[%emt 00:00:05]} Nd5 {[%clk 00:01:41]} 51.
Qa3+ {[%clk 00:00:16]} {[%emt 00:00:03]} Ke8 {[%clk 00:01:41]} {[%emt
00:00:05]} 52. Qd6 {[%clk 00:00:20]} {[%emt 00:00:02]} Bc5 {[%clk 00:01:34]}
{[%emt 00:00:11]} 53. a7 {[%clk 00:00:16]} {[%emt 00:00:10]} Bxa7 {[%clk
00:01:29]} {[%emt 00:00:10]} 54. Qa6 {[%clk 00:00:20]} Bb6 {[%clk 00:01:31]}
{[%emt 00:00:04]} 55. Qa8+ {[%clk 00:00:24]} {[%emt 00:00:01]} Ke7 {[%clk
00:01:34]} {[%emt 00:00:02]} 56. Qa3+ {[%clk 00:00:27]} Bc5 {[%clk 00:01:33]}
{[%emt 00:00:06]} 57. Qa6 {[%clk 00:00:29]} {[%emt 00:00:03]} Kf8 {[%clk
00:01:31]} {[%emt 00:00:08]} 58. Qa8+ {[%clk 00:00:29]} {[%emt 00:00:04]} Kg7
{[%clk 00:01:29]} {[%emt 00:00:07]} 59. f5 {[%clk 00:00:33]} Ra7 {[%clk
00:01:18]} {[%emt 00:00:16]} 60. f6+ {[%clk 00:00:37]} {[%emt 00:00:02]} Kh7
{[%clk 00:00:45]} {[%emt 00:00:38]} 61. Qc8 {[%clk 00:00:41]} Ra3+ {[%clk
00:00:37]} {[%emt 00:00:13]} 62. Kg2 {[%clk 00:00:41]} {[%emt 00:00:05]} Nf4+
{[%clk 00:00:36]} {[%emt 00:00:06]} 63. Kf1 {[%clk 00:00:27]} {[%emt 00:00:18]}
Ra1# {[%clk 00:00:39]} {[%emt 00:00:02]} 0-1